[Event "Live Chess"]
[Site "Chess.com"]
[Date "2024.06.01"]
[Round "-"]
[White "bobby_jamesFischer86"]
[Black "grillage"]
[Result "1-0"]
[WhiteElo "1633"]
[BlackElo "1866"]
[TimeControl "300"]
[EndTime "14:03:54 PDT"]
[Termination "bobby_jamesFischer86 won by checkmate"]

1. d4 {[%clk 0:04:41.6]} 1... e6 {[%clk 0:04:58.6]} 2. c4 {[%clk 0:04:40.1]}
2... Bb4+ {[%clk 0:04:56.9]} 3. Bd2 {[%clk 0:04:38]} 3... Bxd2+ {[%clk
0:04:55.9]} 4. Nxd2 {[%clk 0:04:37.2]} 4... Nf6 {[%clk 0:04:55.3]} 5. e4 {[%clk
0:04:35.9]} 5... d6 {[%clk 0:04:54.5]} 6. Ngf3 {[%clk 0:04:34.3]} 6... Qe7
{[%clk 0:04:53.7]} 7. Bd3 {[%clk 0:04:32.9]} 7... e5 {[%clk 0:04:52.5]} 8. d5
{[%clk 0:04:29]} 8... a5 {[%clk 0:04:50.2]} 9. Qc2 {[%clk 0:04:27.2]} 9... Nbd7
{[%clk 0:04:49]} 10. O-O {[%clk 0:04:22.7]} 10... O-O {[%clk 0:04:47.4]} 11. a3
{[%clk 0:04:19]} 11... a4 {[%clk 0:04:44]} 12. b4 {[%clk 0:04:09]} 12... axb3
{[%clk 0:04:42.5]} 13. Nxb3 {[%clk 0:04:07.8]} 13... b6 {[%clk 0:04:35.7]} 14.
Rfc1 {[%clk 0:04:03.7]} 14... Nh5 {[%clk 0:04:31.2]} 15. g3 {[%clk 0:03:59.8]}
15... Nc5 {[%clk 0:04:06.9]} 16. Nxc5 {[%clk 0:03:56.4]} 16... bxc5 {[%clk
0:04:06.2]} 17. a4 {[%clk 0:03:45.1]} 17... Bg4 {[%clk 0:04:02.4]} 18. Nh4
{[%clk 0:03:35.8]} 18... Ra5 {[%clk 0:03:58.3]} 19. f3 {[%clk 0:03:28.3]} 19...
Bd7 {[%clk 0:03:55.3]} 20. Nf5 {[%clk 0:03:18.1]} 20... Bxf5 {[%clk 0:03:51.7]}
21. exf5 {[%clk 0:03:16.5]} 21... Rfa8 {[%clk 0:03:48.6]} 22. Kg2 {[%clk
0:03:06.4]} 22... Qd7 {[%clk 0:03:46.6]} 23. Rcb1 {[%clk 0:03:03.9]} 23... Nf6
{[%clk 0:03:30.5]} 24. g4 {[%clk 0:02:56.2]} 24... h6 {[%clk 0:03:29]} 25. h4
{[%clk 0:02:54]} 25... Rxa4 {[%clk 0:03:23.5]} 26. Rxa4 {[%clk 0:02:41.8]} 26...
Qxa4 {[%clk 0:03:21.6]} 27. Qxa4 {[%clk 0:02:36]} 27... Rxa4 {[%clk 0:03:20.5]}
28. Rb7 {[%clk 0:02:34.3]} 28... Ne8 {[%clk 0:03:19.4]} 29. Kf2 {[%clk
0:02:22.3]} 29... Kf8 {[%clk 0:03:17.4]} 30. Ke3 {[%clk 0:02:20.8]} 30... Ke7
{[%clk 0:03:16.9]} 31. f4 {[%clk 0:02:08.3]} 31... f6 {[%clk 0:03:13]} 32. g5
{[%clk 0:01:57.7]} 32... Kd7 {[%clk 0:02:58.5]} 33. fxe5 {[%clk 0:01:49]} 33...
fxe5 {[%clk 0:02:53.7]} 34. f6 {[%clk 0:01:43.4]} 34... gxf6 {[%clk 0:02:52]}
35. Bf5+ {[%clk 0:01:39.6]} 35... Ke7 {[%clk 0:02:44.5]} 36. gxh6 {[%clk
0:01:28.9]} 36... Rxc4 {[%clk 0:02:40.4]} 37. h5 {[%clk 0:01:13.9]} 37... Kf8
{[%clk 0:02:28.5]} 38. Rb8 {[%clk 0:01:06.6]} 38... Rh4 {[%clk 0:02:13]} 39. Bg6
{[%clk 0:00:58.3]} 39... Ke7 {[%clk 0:02:05]} 40. Rxe8+ {[%clk 0:00:54]} 40...
Kd7 {[%clk 0:02:03.9]} 41. h7 {[%clk 0:00:51]} 41... c6 {[%clk 0:01:44.5]} 42.
h8=Q {[%clk 0:00:44.8]} 42... cxd5 {[%clk 0:01:44]} 43. Qg7+ {[%clk 0:00:36.3]}
43... Kc6 {[%clk 0:01:43.2]} 44. Rc8+ {[%clk 0:00:33]} 44... Kb5 {[%clk
0:01:42.4]} 45. Qb7+ {[%clk 0:00:31.5]} 45... Kc4 {[%clk 0:01:41.7]} 46. Bd3+
{[%clk 0:00:30.1]} 46... Kc3 {[%clk 0:01:40.1]} 47. Qxd5 {[%clk 0:00:18.6]}
47... Rh3+ {[%clk 0:01:39.4]} 48. Ke2 {[%clk 0:00:17.3]} 48... Rxh5 {[%clk
0:01:36.2]} 49. Rxc5+ {[%clk 0:00:15.4]} 49... Kb4 {[%clk 0:01:34.9]} 50. Qc4+
{[%clk 0:00:13.7]} 50... Ka3 {[%clk 0:01:32.4]} 51. Rb5 {[%clk 0:00:08]} 51...
Rh2+ {[%clk 0:01:30.3]} 52. Ke3 {[%clk 0:00:07]} 52... Rh3+ {[%clk 0:01:29.5]}
53. Kd2 {[%clk 0:00:05.7]} 53... Rh2+ {[%clk 0:01:28.6]} 54. Kc3 {[%clk
0:00:04.8]} 54... Rc2+ {[%clk 0:01:17.9]} 55. Kxc2 {[%clk 0:00:03.6]} 55... d5
{[%clk 0:01:15.6]} 56. Qb3# {[%clk 0:00:02.9]} 1-0

[Event "Live Chess"]
[Site "Chess.com"]
[Date "2024.06.01"]
[Round "-"]
[White "CCGoodKnightRookie"]
[Black "ogpin"]
[Result "1-0"]
[WhiteElo "2310"]
[BlackElo "2220"]
[TimeControl "300"]
[EndTime "14:03:57 PDT"]
[Termination "CCGoodKnightRookie won by resignation"]

1. d4 {[%clk 0:04:58.3]} 1... a5 {[%clk 0:04:57.7]} 2. e4 {[%clk 0:04:57.3]}
2... Ra6 {[%clk 0:04:57.6]} 3. Bxa6 {[%clk 0:04:56.1]} 3... Nxa6 {[%clk
0:04:57.5]} 4. Nf3 {[%clk 0:04:55.5]} 4... b6 {[%clk 0:04:57.2]} 5. Qe2 {[%clk
0:04:54.4]} 5... Bb7 {[%clk 0:04:56.8]} 6. Nc3 {[%clk 0:04:50.8]} 6... g6 {[%clk
0:04:55.8]} 7. h4 {[%clk 0:04:48.3]} 7... h5 {[%clk 0:04:52.2]} 8. a3 {[%clk
0:04:46.9]} 8... Bg7 {[%clk 0:04:51.4]} 9. Bf4 {[%clk 0:04:44.2]} 9... e6 {[%clk
0:04:45.4]} 10. Bg5 {[%clk 0:04:40.7]} 10... Qa8 {[%clk 0:04:44.3]} 11. Bf4
{[%clk 0:04:31.9]} 11... Nf6 {[%clk 0:04:42.3]} 12. e5 {[%clk 0:04:29.8]} 12...
Ne4 {[%clk 0:04:25.8]} 13. Nxe4 {[%clk 0:04:27.1]} 13... Bxe4 {[%clk 0:04:25.7]}
14. c3 {[%clk 0:04:26.6]} 14... c5 {[%clk 0:04:21.8]} 15. Rd1 {[%clk 0:04:23.9]}
15... O-O {[%clk 0:04:14]} 16. Rg1 {[%clk 0:04:16.7]} 16... Rc8 {[%clk 0:04:02]}
17. Ng5 {[%clk 0:04:15.1]} 17... Bd5 {[%clk 0:03:48.7]} 18. g4 {[%clk
0:04:13.4]} 18... hxg4 {[%clk 0:03:45.7]} 19. Qxg4 {[%clk 0:04:10.9]} 19... cxd4
{[%clk 0:03:40.9]} 20. cxd4 {[%clk 0:04:08.9]} 20... Be4 {[%clk 0:03:32.3]} 21.
Be3 {[%clk 0:04:00.9]} 21... Bf5 {[%clk 0:03:23.2]} 22. Qf3 {[%clk 0:03:47.7]}
22... Qxf3 {[%clk 0:03:14.4]} 23. Nxf3 {[%clk 0:03:45.9]} 23... Rc2 {[%clk
0:03:14.3]} 24. Rd2 {[%clk 0:03:44.8]} 24... Rc1+ {[%clk 0:03:00.6]} 25. Ke2
{[%clk 0:03:42.4]} 25... Rc6 {[%clk 0:02:55.5]} 26. h5 {[%clk 0:03:33.7]} 26...
Nc7 {[%clk 0:02:53.3]} 27. hxg6 {[%clk 0:03:32.2]} 27... Bxg6 {[%clk 0:02:49.4]}
28. Nh4 {[%clk 0:03:29.4]} 28... Bh5+ {[%clk 0:02:48.7]} 29. f3 {[%clk
0:03:27.5]} 29... Kf8 {[%clk 0:02:41.9]} 30. Kd3 {[%clk 0:03:19.8]} 30... Nd5
{[%clk 0:02:40.4]} 31. Rdg2 {[%clk 0:03:05.3]} 31... Nxe3 {[%clk 0:02:26.4]} 32.
Kxe3 {[%clk 0:03:03.5]} 32... Bh6+ {[%clk 0:02:22.2]} 33. f4 {[%clk 0:03:03.1]}
33... Ke7 {[%clk 0:02:01.2]} 34. Rg8 {[%clk 0:02:53.9]} 34... Rc2 {[%clk
0:01:57.3]} 35. Rh8 {[%clk 0:02:40.7]} 35... Re2+ {[%clk 0:01:46.4]} 36. Kd3
{[%clk 0:02:39.4]} 36... Rh2 {[%clk 0:01:45.3]} 37. Rxh6 {[%clk 0:02:31.6]}
37... Rxh4 {[%clk 0:01:43.6]} 38. Kd2 {[%clk 0:02:19.9]} 38... Rh2+ {[%clk
0:01:39.4]} 39. Kc1 {[%clk 0:02:14.4]} 39... Rh3 {[%clk 0:01:21.7]} 40. Rg5
{[%clk 0:01:59.8]} 40... Rh1+ {[%clk 0:01:16.1]} 41. Kd2 {[%clk 0:01:54.7]}
41... Rh2+ {[%clk 0:01:14.4]} 42. Ke3 {[%clk 0:01:31.3]} 42... Re2+ {[%clk
0:01:12.8]} 43. Kd3 {[%clk 0:01:30.7]} 43... Bf3 {[%clk 0:01:12.1]} 44. Rg3
{[%clk 0:01:25.7]} 1-0

[Event "Live Chess"]
[Site "Chess.com"]
[Date "2024.06.01"]
[Round "-"]
[White "Crowded_House"]
[Black "imchessive"]
[Result "1/2-1/2"]
[WhiteElo "1738"]
[BlackElo "1605"]
[TimeControl "300"]
[EndTime "14:03:58 PDT"]
[Termination "Game drawn by repetition"]

1. d4 {[%clk 0:04:58.6]} 1... f5 {[%clk 0:04:59]} 2. Bg5 {[%clk 0:04:57.5]} 2...
d6 {[%clk 0:04:57.3]} 3. e3 {[%clk 0:04:55.3]} 3... Nd7 {[%clk 0:04:56.5]} 4.
Nf3 {[%clk 0:04:53.2]} 4... Ngf6 {[%clk 0:04:56]} 5. Bd3 {[%clk 0:04:51.6]} 5...
g6 {[%clk 0:04:55.3]} 6. O-O {[%clk 0:04:48.4]} 6... Bg7 {[%clk 0:04:54.4]} 7.
c3 {[%clk 0:04:42.4]} 7... h6 {[%clk 0:04:52.7]} 8. Bh4 {[%clk 0:04:40]} 8...
O-O {[%clk 0:04:49.4]} 9. h3 {[%clk 0:04:31]} 9... e5 {[%clk 0:04:48.3]} 10.
dxe5 {[%clk 0:04:29.3]} 10... dxe5 {[%clk 0:04:47.4]} 11. Bc4+ {[%clk
0:04:26.6]} 11... Kh7 {[%clk 0:04:44.9]} 12. Bg3 {[%clk 0:04:10.4]} 12... Qe7
{[%clk 0:04:32.2]} 13. Qb3 {[%clk 0:03:56.8]} 13... Nc5 {[%clk 0:04:26.8]} 14.
Qc2 {[%clk 0:03:48.7]} 14... e4 {[%clk 0:04:22.4]} 15. Nd4 {[%clk 0:03:44]}
15... a6 {[%clk 0:04:13.9]} 16. b4 {[%clk 0:03:39.8]} 16... b5 {[%clk 0:04:09]}
17. Be2 {[%clk 0:03:27.2]} 17... Ne6 {[%clk 0:03:55.3]} 18. Nxe6 {[%clk
0:03:19.9]} 18... Qxe6 {[%clk 0:03:55.2]} 19. Nd2 {[%clk 0:03:15.2]} 19... Rf7
{[%clk 0:03:45.1]} 20. Qb3 {[%clk 0:03:07.4]} 20... Qxb3 {[%clk 0:03:42.8]} 21.
Nxb3 {[%clk 0:03:06.2]} 21... Rd7 {[%clk 0:03:36.3]} 22. Rfd1 {[%clk 0:03:04.7]}
22... c6 {[%clk 0:03:25.2]} 23. Nc5 {[%clk 0:02:53.2]} 23... Rd5 {[%clk
0:03:18.5]} 24. Rac1 {[%clk 0:02:33.5]} 24... Nd7 {[%clk 0:02:59.2]} 25. Nxd7
{[%clk 0:02:22.2]} 25... Bxd7 {[%clk 0:02:59.1]} 26. Rxd5 {[%clk 0:02:19.8]}
26... cxd5 {[%clk 0:02:56]} 27. Bd6 {[%clk 0:02:11.7]} 27... Rc8 {[%clk
0:02:54.1]} 28. Bc5 {[%clk 0:02:09.7]} 28... Bf8 {[%clk 0:02:50.5]} 29. Bxf8
{[%clk 0:01:59.2]} 29... Rxf8 {[%clk 0:02:50.4]} 30. Kf1 {[%clk 0:01:43.2]}
30... Rc8 {[%clk 0:02:48.6]} 31. Ke1 {[%clk 0:01:34.2]} 31... Kg7 {[%clk
0:02:47.4]} 32. Kd2 {[%clk 0:01:31.7]} 32... Kf6 {[%clk 0:02:44.2]} 33. g3
{[%clk 0:01:25.8]} 33... g5 {[%clk 0:02:35.8]} 34. Rc2 {[%clk 0:01:21.3]} 34...
f4 {[%clk 0:02:26.7]} 35. a3 {[%clk 0:01:18.2]} 35... fxg3 {[%clk 0:02:14.6]}
36. fxg3 {[%clk 0:01:17.4]} 36... Bxh3 {[%clk 0:02:13.9]} 37. Rc1 {[%clk
0:01:14.3]} 37... Ke5 {[%clk 0:02:04.3]} 38. Bf1 {[%clk 0:01:07.1]} 38... Bg4
{[%clk 0:02:00.7]} 39. Bg2 {[%clk 0:00:59.4]} 39... Rf8 {[%clk 0:01:58.4]} 40.
Rf1 {[%clk 0:00:58.9]} 40... Rxf1 {[%clk 0:01:55.7]} 41. Bxf1 {[%clk 0:00:58.5]}
41... h5 {[%clk 0:01:36.4]} 42. Ke1 {[%clk 0:00:55.9]} 42... Bf3 {[%clk
0:01:20.8]} 43. Kf2 {[%clk 0:00:54.8]} 43... Kf5 {[%clk 0:01:14.4]} 44. Bh3+
{[%clk 0:00:52.6]} 44... Bg4 {[%clk 0:01:13.2]} 45. Bf1 {[%clk 0:00:51.7]} 45...
h4 {[%clk 0:01:08.4]} 46. gxh4 {[%clk 0:00:49.8]} 46... gxh4 {[%clk 0:01:08.3]}
47. Kg1 {[%clk 0:00:47.6]} 47... Kg5 {[%clk 0:01:05.3]} 48. Kh2 {[%clk
0:00:46.5]} 48... Bf3 {[%clk 0:01:02.5]} 49. Kh3 {[%clk 0:00:43.6]} 49... Bg4+
{[%clk 0:01:01.3]} 50. Kh2 {[%clk 0:00:42.7]} 50... Be6 {[%clk 0:00:58.2]} 51.
Be2 {[%clk 0:00:41]} 51... Bg4 {[%clk 0:00:55.7]} 52. Bf1 {[%clk 0:00:39.9]}
1/2-1/2

[Event "Live Chess"]
[Site "Chess.com"]
[Date "2024.06.01"]
[Round "-"]
[White "road2gm5000"]
[Black "upoe610"]
[Result "0-1"]
[WhiteElo "1082"]
[BlackElo "2235"]
[TimeControl "300"]
[EndTime "14:04:00 PDT"]
[Termination "upoe610 won by resignation"]

1. e4 {[%clk 0:04:57.3]} 1... e5 {[%clk 0:04:59.3]} 2. Nf3 {[%clk 0:04:56.1]}
2... Nc6 {[%clk 0:04:57.5]} 3. Bb5 {[%clk 0:04:55.1]} 3... a6 {[%clk 0:04:56.6]}
4. Bxc6 {[%clk 0:04:54]} 4... dxc6 {[%clk 0:04:56.5]} 5. Nc3 {[%clk 0:04:53.1]}
5... Bd6 {[%clk 0:04:47.3]} 6. d4 {[%clk 0:04:51.7]} 6... exd4 {[%clk
0:04:46.2]} 7. Qxd4 {[%clk 0:04:50.5]} 7... f6 {[%clk 0:04:44.7]} 8. e5 {[%clk
0:04:38.5]} 8... fxe5 {[%clk 0:04:42.6]} 9. Nxe5 {[%clk 0:04:36.9]} 9... Qe7
{[%clk 0:04:41.5]} 10. Bf4 {[%clk 0:04:31.5]} 10... c5 {[%clk 0:04:36.8]} 11.
Qe3 {[%clk 0:04:26.3]} 11... Nf6 {[%clk 0:04:35.6]} 12. h3 {[%clk 0:04:18.5]}
12... b5 {[%clk 0:04:32.2]} 13. O-O-O {[%clk 0:04:16]} 13... b4 {[%clk
0:04:30.9]} 14. Nd5 {[%clk 0:04:13.8]} 14... Nxd5 {[%clk 0:04:29.5]} 15. Rxd5
{[%clk 0:04:12.6]} 15... Be6 {[%clk 0:04:26.9]} 16. Rdd1 {[%clk 0:04:04.8]}
16... O-O {[%clk 0:04:25]} 17. g3 {[%clk 0:03:58.3]} 17... Qf6 {[%clk
0:04:10.3]} 18. Nd3 {[%clk 0:03:49.1]} 18... Rae8 {[%clk 0:04:07.6]} 19. Bxd6
{[%clk 0:03:46.4]} 19... cxd6 {[%clk 0:04:05.1]} 20. Nf4 {[%clk 0:03:44.6]}
20... Bxa2 {[%clk 0:03:29.3]} 21. Qd3 {[%clk 0:03:32.7]} 21... Bf7 {[%clk
0:03:18.8]} 22. Qxd6 {[%clk 0:03:28.1]} 22... Qxd6 {[%clk 0:03:17.3]} 23. Rxd6
{[%clk 0:03:28]} 23... g5 {[%clk 0:03:12.4]} 24. Nd3 {[%clk 0:03:21.9]} 24...
Rc8 {[%clk 0:03:07.4]} 25. Rxa6 {[%clk 0:03:14.5]} 25... b3 {[%clk 0:03:03.9]}
26. cxb3 {[%clk 0:03:09.6]} 26... Bxb3 {[%clk 0:03:03.8]} 27. Ra5 {[%clk
0:03:07]} 27... c4 {[%clk 0:02:57.4]} 28. Ne5 {[%clk 0:02:59.5]} 28... Rxf2
{[%clk 0:02:53.5]} 29. Ng4 {[%clk 0:02:54.9]} 29... Rc2+ {[%clk 0:02:51.6]} 30.
Kb1 {[%clk 0:02:50]} 30... Rg2 {[%clk 0:02:43.4]} 31. Rxg5+ {[%clk 0:02:46.4]}
31... Kh8 {[%clk 0:02:41.3]} 32. Ne5 {[%clk 0:02:28.5]} 32... Bc2+ {[%clk
0:02:40.1]} 33. Kc1 {[%clk 0:02:24.5]} 33... Be4 {[%clk 0:02:38.9]} 34. Re1
{[%clk 0:02:20]} 34... Rc2+ {[%clk 0:02:31.8]} 35. Kd1 {[%clk 0:02:15.8]} 35...
Rd8+ {[%clk 0:02:30.5]} 0-1

[Event "Live Chess"]
[Site "Chess.com"]
[Date "2024.06.01"]
[Round "-"]
[White "Eva3337"]
[Black "Isambard_Thomas"]
[Result "0-1"]
[WhiteElo "1165"]
[BlackElo "2164"]
[TimeControl "300"]
[EndTime "14:04:08 PDT"]
[Termination "Isambard_Thomas won by resignation"]

1. e4 {[%clk 0:04:50.6]} 1... Nc6 {[%clk 0:04:58.3]} 2. Nf3 {[%clk 0:04:49.2]}
2... d5 {[%clk 0:04:57.5]} 3. e5 {[%clk 0:04:47.1]} 3... Bg4 {[%clk 0:04:55.6]}
4. d4 {[%clk 0:04:42.1]} 4... e6 {[%clk 0:04:54.5]} 5. c3 {[%clk 0:04:40.4]}
5... f6 {[%clk 0:04:53.7]} 6. Be2 {[%clk 0:04:38.8]} 6... Be7 {[%clk 0:04:52.8]}
7. h3 {[%clk 0:04:38]} 7... Bxf3 {[%clk 0:04:50.9]} 8. Bxf3 {[%clk 0:04:36.8]}
8... fxe5 {[%clk 0:04:50.5]} 9. O-O {[%clk 0:04:34.2]} 9... e4 {[%clk
0:04:49.2]} 10. Bg4 {[%clk 0:04:31.6]} 10... Qd7 {[%clk 0:04:46.1]} 11. f3
{[%clk 0:04:26.3]} 11... exf3 {[%clk 0:04:43.9]} 12. Qxf3 {[%clk 0:04:22.5]}
12... Nf6 {[%clk 0:04:43.4]} 13. Bh5+ {[%clk 0:04:16.4]} 13... g6 {[%clk
0:04:33.3]} 14. Bg5 {[%clk 0:04:01.4]} 14... Nxh5 {[%clk 0:03:48.9]} 15. Qf7+
{[%clk 0:03:49.4]} 15... Kd8 {[%clk 0:03:47.7]} 16. Bxe7+ {[%clk 0:03:39]} 16...
Qxe7 {[%clk 0:03:42.3]} 17. Qxe7+ {[%clk 0:03:16.5]} 17... Kxe7 {[%clk
0:03:42.2]} 18. Na3 {[%clk 0:03:14.2]} 18... a6 {[%clk 0:03:37.8]} 19. Rf2
{[%clk 0:03:05]} 19... Rhf8 {[%clk 0:03:34.2]} 20. Raf1 {[%clk 0:03:02.1]} 20...
Rxf2 {[%clk 0:03:31.9]} 21. Rxf2 {[%clk 0:03:01.3]} 21... Nf6 {[%clk 0:03:31.4]}
22. Nc2 {[%clk 0:02:52.4]} 22... Ne4 {[%clk 0:03:30.1]} 23. Re2 {[%clk
0:02:45.6]} 23... Rf8 {[%clk 0:03:27.6]} 24. Ne1 {[%clk 0:02:35.1]} 24... Ng3
{[%clk 0:03:25.9]} 25. Re3 {[%clk 0:02:22.6]} 25... Rf1+ {[%clk 0:03:10.4]} 26.
Kh2 {[%clk 0:02:18.2]} 26... Nf5 {[%clk 0:03:08]} 27. Re2 {[%clk 0:02:14.7]}
27... Na5 {[%clk 0:03:05.5]} 28. Nf3 {[%clk 0:02:11.3]} 28... Nc4 {[%clk
0:03:02.5]} 29. g4 {[%clk 0:02:03.7]} 29... Nfe3 {[%clk 0:02:58.6]} 30. Ng5
{[%clk 0:01:56]} 30... h6 {[%clk 0:02:52.9]} 31. Nxe6 {[%clk 0:01:49.2]} 31...
Kxe6 {[%clk 0:02:51]} 0-1

[Event "Live Chess"]
[Site "Chess.com"]
[Date "2024.06.01"]
[Round "-"]
[White "KeithArkell"]
[Black "f4nomore"]
[Result "1-0"]
[WhiteElo "2460"]
[BlackElo "1213"]
[TimeControl "300"]
[EndTime "14:04:20 PDT"]
[Termination "KeithArkell won on time"]

1. d4 {[%clk 0:04:57.9]} 1... g6 {[%clk 0:04:58.9]} 2. Nf3 {[%clk 0:04:57.3]}
2... Bg7 {[%clk 0:04:57.5]} 3. c4 {[%clk 0:04:56.9]} 3... d6 {[%clk 0:04:56.5]}
4. Nc3 {[%clk 0:04:56.7]} 4... Nf6 {[%clk 0:04:54.3]} 5. g3 {[%clk 0:04:55.7]}
5... O-O {[%clk 0:04:52.5]} 6. Bg2 {[%clk 0:04:54.8]} 6... Nbd7 {[%clk
0:04:51.2]} 7. d5 {[%clk 0:04:54.4]} 7... c6 {[%clk 0:04:49.8]} 8. dxc6 {[%clk
0:04:53.5]} 8... bxc6 {[%clk 0:04:48.3]} 9. Nd4 {[%clk 0:04:53.2]} 9... c5
{[%clk 0:04:44.4]} 10. Nc6 {[%clk 0:04:50.6]} 10... Qe8 {[%clk 0:04:38.2]} 11.
Nxe7+ {[%clk 0:04:49.5]} 11... Qxe7 {[%clk 0:04:36.6]} 12. Bxa8 {[%clk
0:04:49.4]} 12... Ba6 {[%clk 0:04:34.5]} 13. Bd5 {[%clk 0:04:45.9]} 13... Nxd5
{[%clk 0:04:31.2]} 14. Qxd5 {[%clk 0:04:40.3]} 14... Nf6 {[%clk 0:04:27.4]} 15.
Qd3 {[%clk 0:04:37.4]} 15... Bb7 {[%clk 0:04:24.8]} 16. O-O {[%clk 0:04:35.6]}
16... Qe6 {[%clk 0:04:17.9]} 17. Bg5 {[%clk 0:04:33.3]} 17... Qh3 {[%clk
0:04:14.5]} 18. f3 {[%clk 0:04:32]} 18... Ng4 {[%clk 0:04:08.2]} 19. Rf2 {[%clk
0:04:27.5]} 19... Nxf2 {[%clk 0:04:04.7]} 20. Kxf2 {[%clk 0:04:26.8]} 20...
Qxh2+ {[%clk 0:04:03.1]} 21. Ke3 {[%clk 0:04:20.8]} 21... Bd4+ {[%clk
0:03:48.7]} 22. Kd2 {[%clk 0:04:19.3]} 22... Qxg3 {[%clk 0:03:43.1]} 23. Be3
{[%clk 0:04:15.4]} 23... Bg7 {[%clk 0:03:30.2]} 24. Rh1 {[%clk 0:04:12.1]} 24...
Qg2 {[%clk 0:03:22.6]} 25. Rg1 {[%clk 0:04:06.8]} 25... Qh3 {[%clk 0:03:18.6]}
26. b3 {[%clk 0:04:02.3]} 26... Qh2 {[%clk 0:03:02.9]} 27. Nd5 {[%clk
0:03:58.8]} 27... Bxd5 {[%clk 0:02:59.5]} 28. Qxd5 {[%clk 0:03:57.1]} 28... Qe5
{[%clk 0:02:41.8]} 29. Qxe5 {[%clk 0:03:53.1]} 29... Bxe5 {[%clk 0:02:39.1]} 30.
f4 {[%clk 0:03:52]} 30... Bg7 {[%clk 0:02:36.6]} 31. f5 {[%clk 0:03:45.8]} 31...
Re8 {[%clk 0:02:32.5]} 32. Bf4 {[%clk 0:03:44.1]} 32... Re4 {[%clk 0:02:26.7]}
33. e3 {[%clk 0:03:41.9]} 33... a5 {[%clk 0:02:17.1]} 34. Kd3 {[%clk 0:03:36]}
34... Re8 {[%clk 0:02:10.7]} 35. e4 {[%clk 0:03:34.2]} 35... Be5 {[%clk
0:02:00.1]} 36. Bh6 {[%clk 0:03:26.8]} 36... Bf6 {[%clk 0:01:55.1]} 37. Bd2
{[%clk 0:03:20]} 37... Kg7 {[%clk 0:01:50.2]} 38. a4 {[%clk 0:03:11.9]} 38... h6
{[%clk 0:01:47.9]} 39. Bxa5 {[%clk 0:03:10.6]} 39... Re7 {[%clk 0:01:42.7]} 40.
Bd2 {[%clk 0:03:08.2]} 40... g5 {[%clk 0:01:39.4]} 41. a5 {[%clk 0:03:06.8]}
41... Ra7 {[%clk 0:01:32.5]} 42. Kc2 {[%clk 0:03:02]} 42... Ra6 {[%clk
0:01:29.1]} 43. Kb1 {[%clk 0:03:00.9]} 43... Be5 {[%clk 0:01:25.1]} 44. Ka2
{[%clk 0:02:58.4]} 44... f6 {[%clk 0:01:23.6]} 45. Ka3 {[%clk 0:02:57.6]} 45...
Kf7 {[%clk 0:01:22.3]} 46. Ka4 {[%clk 0:02:57.1]} 46... Ra8 {[%clk 0:01:18.9]}
47. Kb5 {[%clk 0:02:56.6]} 47... Rb8+ {[%clk 0:01:17.1]} 48. Kc6 {[%clk
0:02:55.8]} 48... Rxb3 {[%clk 0:01:15]} 49. a6 {[%clk 0:02:54.1]} 49... Ra3
{[%clk 0:01:13.2]} 50. Kb7 {[%clk 0:02:51.6]} 50... Rb3+ {[%clk 0:01:09.7]} 51.
Ka8 {[%clk 0:02:46.9]} 51... d5 {[%clk 0:00:59.8]} 52. exd5 {[%clk 0:02:42.2]}
52... Rb8+ {[%clk 0:00:55.6]} 53. Ka7 {[%clk 0:02:40.4]} 53... Rb2 {[%clk
0:00:42.2]} 54. Ba5 {[%clk 0:02:37.5]} 54... Bb8+ {[%clk 0:00:34]} 55. Ka8
{[%clk 0:02:36.2]} 55... Bd6 {[%clk 0:00:19.2]} 56. a7 {[%clk 0:02:32]} 56...
Ra2 {[%clk 0:00:12]} 57. Bb6 {[%clk 0:02:30.1]} 57... Rb2 {[%clk 0:00:06.4]} 58.
Kb7 {[%clk 0:02:29.3]} 1-0

[Event "Live Chess"]
[Site "Chess.com"]
[Date "2024.06.01"]
[Round "-"]
[White "degringolade64"]
[Black "jimwad"]
[Result "1-0"]
[WhiteElo "2125"]
[BlackElo "1296"]
[TimeControl "300"]
[EndTime "14:04:20 PDT"]
[Termination "degringolade64 won by resignation"]

1. e4 {[%clk 0:04:57.3]} 1... e5 {[%clk 0:04:58.7]} 2. Nf3 {[%clk 0:04:55.8]}
2... Nc6 {[%clk 0:04:57.3]} 3. Bb5 {[%clk 0:04:54.9]} 3... Nf6 {[%clk
0:04:56.1]} 4. O-O {[%clk 0:04:52.9]} 4... d6 {[%clk 0:04:53.6]} 5. Bxc6+ {[%clk
0:04:46.7]} 5... bxc6 {[%clk 0:04:52.1]} 6. d4 {[%clk 0:04:45.8]} 6... exd4
{[%clk 0:04:50.4]} 7. Qxd4 {[%clk 0:04:41.5]} 7... Be7 {[%clk 0:04:49.6]} 8. Nc3
{[%clk 0:04:37.1]} 8... O-O {[%clk 0:04:48.1]} 9. b3 {[%clk 0:04:31.8]} 9... Ba6
{[%clk 0:04:46.5]} 10. Re1 {[%clk 0:04:27.2]} 10... c5 {[%clk 0:04:45.4]} 11.
Qd2 {[%clk 0:04:21.6]} 11... h6 {[%clk 0:04:29.1]} 12. Bb2 {[%clk 0:04:12.3]}
12... Bb7 {[%clk 0:04:26.4]} 13. Rad1 {[%clk 0:04:08.2]} 13... Nd7 {[%clk
0:04:20.1]} 14. Nd5 {[%clk 0:04:01.7]} 14... Bg5 {[%clk 0:04:17.4]} 15. Qc3
{[%clk 0:03:53.1]} 15... Bf6 {[%clk 0:04:03.7]} 16. Nxf6+ {[%clk 0:03:51.3]}
16... Nxf6 {[%clk 0:04:01.7]} 17. Qc4 {[%clk 0:03:44.7]} 17... a5 {[%clk
0:03:37.9]} 18. e5 {[%clk 0:03:38.9]} 18... Nh7 {[%clk 0:03:28.6]} 19. exd6
{[%clk 0:03:30.4]} 19... cxd6 {[%clk 0:03:27.3]} 20. Be5 {[%clk 0:03:28.2]}
20... Ba6 {[%clk 0:03:21.3]} 21. Qc3 {[%clk 0:03:17.7]} 21... f6 {[%clk
0:03:08.1]} 22. Bxd6 {[%clk 0:03:07.7]} 22... Rf7 {[%clk 0:03:03]} 23. Bxc5
{[%clk 0:03:00.3]} 23... Qc8 {[%clk 0:02:55.8]} 24. Bd4 {[%clk 0:02:57.5]} 24...
Qxc3 {[%clk 0:02:53]} 25. Bxc3 {[%clk 0:02:57.4]} 25... Rc8 {[%clk 0:02:50.5]}
26. Bxa5 {[%clk 0:02:55.4]} 26... Rxc2 {[%clk 0:02:46.9]} 27. Re8+ {[%clk
0:02:37.1]} 27... Rf8 {[%clk 0:02:40.8]} 28. Rxf8+ {[%clk 0:02:30.1]} 28... Nxf8
{[%clk 0:02:39.3]} 29. h4 {[%clk 0:02:24.9]} 29... Ne6 {[%clk 0:02:32.8]} 30.
Rd2 {[%clk 0:02:19.2]} 30... Rc1+ {[%clk 0:02:29.1]} 31. Kh2 {[%clk 0:02:17.8]}
31... Kh7 {[%clk 0:02:14.2]} 32. Bb6 {[%clk 0:02:10.9]} 32... Bc8 {[%clk
0:02:04.4]} 33. a4 {[%clk 0:02:06.5]} 33... Rb1 {[%clk 0:02:02.3]} 34. Rd3
{[%clk 0:01:50.3]} 34... Nf4 {[%clk 0:01:59.6]} 35. Rc3 {[%clk 0:01:49.2]} 35...
Ne2 {[%clk 0:01:55.7]} 36. Rxc8 {[%clk 0:01:45.7]} 36... Rxb3 {[%clk 0:01:53.8]}
37. a5 {[%clk 0:01:41.7]} 37... Nf4 {[%clk 0:01:50.2]} 38. Be3 {[%clk
0:01:38.6]} 38... Nd5 {[%clk 0:01:46.4]} 39. a6 {[%clk 0:01:36.4]} 39... Nxe3
{[%clk 0:01:44.3]} 40. fxe3 {[%clk 0:01:36.3]} 40... Rxe3 {[%clk 0:01:43.2]} 41.
a7 {[%clk 0:01:35.3]} 41... Ra3 {[%clk 0:01:41.7]} 42. a8=Q {[%clk 0:01:33.7]}
1-0